bitfinex-derivatives/quotes_ETHF0:USTF0_20250727
["timestamp","ask_amount","ask_price","bid_price","bid_amount"]
[1753623378152,2.7256,3813.4,3813.3,21.55729]
[1753623378540,0.52431,3813.3,3813.2,0.5243]
[1753623378847,2.7256,3813.1,3813.0,0.52432]
[1753623379042,2.7256,3813.1,3812.9,21.55834]
[1753623379243,0.52435,3813.0,3812.9,21.55833]
[1753623379448,1.86805,3813.0,3812.9,0.52433]
[1753623379649,2.47615,3813.0,3812.9,21.4398]
[1753623379850,3.85805,3813.0,3812.9,0.4048]
[1753623380050,3.85805,3812.9,3812.8,24.76615]
[1753623380449,3.85805,3812.9,3812.8,25.17095]
[1753623380946,3.85805,3812.9,3812.8,25.17655]
[1753623381753,3.85805,3812.9,3812.8,4.13695]
[1753623382256,1.3437,3813.3,3813.2,1.4433]
[1753623382456,1.86799,3813.3,3813.2,1.4489]
[1753623382649,3.85799,3813.3,3813.2,0.9291]
[1753623384953,3.3337,3813.0,3812.9,0.4048]
[1753623385456,3.3337,3813.0,3812.9,0.4104]
[1753623385658,3.3337,3813.0,3812.9,1.6852]
[1753623385861,3.85803,3813.0,3812.9,0.4048]
[1753623386458,3.85803,3813.0,3812.9,0.4104]
[1753623386849,3.85803,3813.0,3812.9,1.44895]
[1753623387051,3.85803,3813.0,3812.9,2.84025]
[1753623387860,3.85803,3813.0,3812.9,2.84925]
[1753623388462,3.85803,3813.0,3812.8,0.4]
[1753623388463,1.44215,3812.9,3812.8,0.4]
[1753623388753,1.3027,3812.7,3812.6,0.4]
[1753623388949,3.76867,3812.7,3812.6,21.439]
[1753623389660,3.76867,3812.7,3812.6,0.4]
[1753623389959,3.76871,3812.4,3812.3,2.2655]
[1753623390161,3.76871,3812.4,3812.3,23.3035]
[1753623390860,3.76871,3812.4,3812.3,2.2655]
[1753623391061,3.76871,3812.4,3812.3,23.82992]
[1753623392360,1.1736,3812.7,3812.6,0.9519]
[1753623392564,1.1529,3812.9,3812.8,1.47626]
[1753623392863,3.2078,3813.1,3813.0,2.78983]
[1753623393358,2.7298,3813.6,3813.5,1.47615]
[1753623393554,0.77221429,3813.6,3813.5,2.2655]
[1753623393763,0.77221429,3813.6,3813.5,23.84676]
[1753623393953,3.2078,3813.7,3813.6,0.52425]
[1753623394159,6.97634,3813.7,3813.6,0.9519]
[1753623394358,0.3849,3814.1,3813.7,0.7456]
[1753623394561,0.3849,3814.1,3814.0,5.99749]
[1753623394760,0.3849,3814.1,3814.0,27.05349]
[1753623395061,0.9545,3814.1,3814.0,27.05349]
[1753623395268,3.2443,3814.1,3814.0,27.05349]
[1753623395462,3.2443,3814.3,3814.2,2.04406]
[1753623395661,3.2443,3814.3,3814.2,2.78966]
[1753623396262,3.76845,3814.3,3814.2,2.78966]
[1753623397466,3.76845,3814.3,3814.2,2.2655]
[1753623397661,3.76845,3814.3,3814.2,0.4]
[1753623397861,3.76849,3814.1,3814.0,21.459]
[1753623398460,0.3849,3813.7,3813.6,4.5214]
[1753623398760,1.82696,3813.5,3813.4,21.58527]
[1753623398963,3.76856,3813.5,3813.4,21.58527]
[1753623399259,3.76856,3813.5,3813.4,21.98727]
[1753623399463,3.76856,3813.5,3813.4,0.92427]
[1753623399664,3.2443,3813.5,3813.4,0.92427]
[1753623399865,3.76856,3813.5,3813.4,1.6975]
[1753623400063,3.76856,3813.5,3813.4,2.22178]
[1753623400660,3.2443,3813.5,3813.4,2.78978]
[1753623401359,1.9416,3813.8,3813.7,0.9519]
[1753623401559,3.2443,3813.8,3813.7,2.78974]
[1753623401766,3.2443,3813.8,3813.7,23.84474]
[1753623401966,6.4521,3814.1,3814.0,2.78969]
[1753623404164,6.97628,3814.1,3814.0,2.78969]
[1753623404866,6.97628,3814.1,3814.0,0.9519]
[1753623405067,6.97628,3814.1,3814.0,0.4]
[1753623405362,0.52423,3813.8,3813.7,0.52422]
[1753623405567,5.26472436,3814.2,3813.6,21.457]
[1753623405568,3.2443,3813.7,3813.6,21.457]
[1753623405763,3.2443,3813.7,3813.6,16.457]
[1753623405958,3.76856,3813.7,3813.6,17.38125]
[1753623406263,3.76856,3813.7,3813.6,18.67875]
[1753623407162,3.76856,3813.7,3813.6,1.47615]
[1753623407363,1.31049,3814.1,3813.4,0.9519]
[1753623407364,1.82698,3813.5,3813.4,0.9519]
[1753623407567,1.82698,3813.5,3813.4,22.0069]
[1753623407763,1.82698,3813.5,3813.4,1.47617]
[1753623407964,1.82698,3813.4,3813.3,4.47768]
[1753623408164,3.76858,3813.4,3813.3,25.53168]
[1753623408360,3.76858,3813.4,3813.3,25.93168]
[1753623408568,3.76858,3813.4,3813.3,26.48358]
[1753623410371,3.76858,3813.4,3813.3,5.42958]
[1753623410570,3.76858,3813.4,3813.3,26.47558]
[1753623410869,3.76858,3813.4,3813.3,23.26778]
[1753623411273,3.76858,3813.4,3813.3,23.26578]
[1753623411771,3.76858,3813.4,3813.3,2.22178]
[1753623412069,3.76858,3813.4,3813.3,23.26478]
[1753623413569,3.76858,3813.4,3813.3,23.26378]
[1753623417678,3.76858,3813.4,3813.3,23.32718]
[1753623417978,3.2443,3813.4,3813.3,23.32718]
[1753623418175,3.76858,3813.4,3813.3,23.32718]
[1753623418980,3.2443,3813.4,3813.3,23.32718]
[1753623419276,3.2443,3813.4,3813.3,23.83608]
[1753623423974,3.2443,3813.4,3813.3,23.32718]
[1753623424581,3.2443,3813.4,3813.3,23.83608]
[1753623424879,0.5696,3813.4,3813.3,23.83608]
[1753623425081,1.4813,3813.7,3813.6,2.87315]
[1753623425379,2.2592,3814.0,3813.9,1.55421]
[1753623425572,2.8062,3814.0,3813.9,23.87911]
[1753623425973,0.6382,3814.0,3813.9,23.87911]
[1753623426470,0.6382,3814.0,3813.9,27.08691]
[1753623426673,2.2736,3814.0,3813.9,27.08691]
[1753623426872,3.4444,3814.0,3813.9,27.08691]
[1753623430284,3.4444,3814.0,3813.9,24.55462]
[1753623433180,1.4305,3814.0,3813.9,24.63252]
[1753623433884,3.4444,3814.0,3813.9,24.55462]
[1753623434582,4.51799,3814.9,3813.9,24.55462]
[1753623434583,1.2177,3814.4,3814.3,0.4524]
[1753623434784,0.6382,3814.4,3814.3,26.19951436]
[1753623440286,1.4305,3814.4,3814.3,26.19951436]
[1753623441788,0.52405,3815.1,3815.0,0.52406]
[1753623442085,2.1824,3815.0,3814.9,21.50407]
[1753623442285,2.1824,3815.0,3814.9,21.52607]
[1753623442490,3.4444,3815.0,3814.9,21.52607]
[1753623443280,2.53796,3815.0,3814.9,0.52407]
[1753623443486,1.9142,3814.9,3814.8,21.52408]
[1753623443689,3.9685,3814.9,3814.8,21.53108]
[1753623443988,3.9685,3814.9,3814.8,21.007]
[1753623444391,3.9685,3814.9,3814.8,21.53109]
[1753623446890,3.9685,3814.9,3814.8,0.52409]
[1753623448492,3.4444,3814.9,3814.8,0.67699]
[1753623448692,3.4444,3814.9,3814.8,0.90529]
[1753623448888,3.4444,3814.9,3814.8,1.27059]
[1753623449692,2.8206,3814.9,3814.8,1.36609]
[1753623449988,2.8206,3814.9,3814.8,1.27059]
[1753623450393,3.4487,3814.9,3814.8,1.27059]
[1753623452905,2.8566,3815.3,3815.2,0.1529]
[1753623453094,2.8566,3815.3,3815.2,22.25453]
[1753623453392,1.8639,3815.3,3815.2,22.35003]
[1753623453895,3.4847,3815.3,3815.2,22.25453]
[1753623454491,0.598,3815.3,3815.2,22.35003]
[1753623454686,3.4847,3815.3,3815.2,22.25453]
[1753623455389,0.598,3815.3,3815.2,22.35003]
[1753623456398,1.4526,3815.3,3815.2,22.35003]
[1753623457198,2.492,3815.3,3815.2,22.25453]
[1753623457397,2.9111,3815.3,3815.2,22.25453]
[1753623460997,3.4847,3815.3,3815.2,22.25453]
[1753623463907,0.598,3815.3,3815.2,22.35003]
[1753623464504,1.4526,3815.3,3815.2,22.35003]
[1753623464904,3.4847,3815.3,3815.2,22.25453]
[1753623465912,3.4847,3815.3,3815.2,1.27053]
[1753623466209,3.4847,3815.3,3815.2,22.26453]
[1753623466407,3.4847,3815.3,3815.2,1.27053]
[1753623466605,3.4847,3815.3,3815.2,22.03223]
[1753623467005,3.4847,3815.3,3815.2,22.26053]
[1753623469219,0.598,3815.3,3815.2,23.10249436]
[1753623469719,1.4526,3815.3,3815.2,23.10249436]
[1753623469919,2.492,3815.3,3815.2,23.10249436]
[1753623470119,3.4847,3815.3,3815.2,23.00699436]
[1753623470525,3.4847,3815.3,3815.2,2.01699436]
[1753623470716,3.4847,3815.3,3815.2,22.99799436]
[1753623471422,0.72394,3815.9,3815.2,22.99799436]
[1753623471423,3.6847,3815.9,3815.8,1.27045]
[1753623471628,3.6847,3815.9,3815.8,22.25145]
[1753623473826,3.6847,3815.9,3815.8,21.50495]
[1753623474125,3.6847,3815.9,3815.8,0.52395]
[1753623474328,3.6847,3815.9,3815.8,21.49895]
[1753623476028,3.6847,3815.9,3815.8,21.49795]
[1753623476727,3.6847,3815.9,3815.8,22.24445]
[1753623477432,3.6847,3815.9,3815.8,22.01615]
[1753623479431,3.6847,3815.9,3815.8,22.21475]
[1753623480526,1.2093,3815.9,3815.8,22.21475]
[1753623480725,0.798,3815.9,3815.8,22.28795]
[1753623481526,1.607,3815.9,3815.8,22.28795]
[1753623481727,2.5815,3815.9,3815.8,22.21475]
[1753623481927,3.5376,3815.9,3815.8,22.21475]
[1753623482232,3.5376,3815.9,3815.8,21.49795]
[1753623482627,3.5376,3815.9,3815.8,22.13145]
[1753623483136,3.5376,3815.9,3815.8,0.52395]
[1753623483337,1.994,3815.9,3815.8,21.92885]
[1753623483633,1.994,3815.9,3815.8,22.12745]
[1753623483634,3.5376,3815.9,3815.8,22.12745]
[1753623485130,2.9501,3815.9,3815.8,22.12745]
[1753623485730,1.4048,3816.2,3816.1,1.15741]
[1753623485936,1.4048,3816.2,3816.1,25.44441]
[1753623487138,1.7918,3816.2,3816.1,25.37121]
[1753623487938,0.5958,3816.2,3816.1,25.44441]
[1753623488139,3.2078,3817.3,3816.5,2.61928]
[1753623488338,1.9306,3817.7,3817.6,0.5413]
[1753623488644,1.3731,3817.7,3817.6,26.81386436]
[1753623488830,0.7856,3817.7,3817.6,26.81386436]
[1753623489031,2.1306,3817.9,3817.8,1.84357]
[1753623489243,2.1306,3817.9,3817.8,0.52367]
[1753623489438,2.1306,3817.9,3817.8,21.60467]
[1753623490142,2.7264,3817.9,3817.8,21.081]
[1753623490443,3.5354,3817.9,3817.8,21.081]
[1753623490837,3.5354,3817.9,3817.8,21.60467]
[1753623491239,4.05906,3817.9,3817.8,21.60467]
[1753623491441,3.5354,3817.9,3817.8,21.60467]
[1753623492339,3.5354,3817.9,3817.8,0.52367]
[1753623492544,3.5354,3817.9,3817.8,21.60167]
[1753623492744,4.05906,3817.9,3817.8,21.59567]
[1753623493039,3.05009,3817.7,3817.6,3.2078]
[1753623493241,3.85909,3817.7,3817.6,24.8035]
[1753623493546,3.85909,3817.7,3817.6,3.7315]
[1753623493747,3.85909,3817.7,3817.6,24.8015]
[1753623494847,1.3431,3817.2,3817.1,3.73157]
[1753623495148,3.3354,3817.2,3817.1,3.73157]
[1753623495342,3.3354,3817.2,3817.1,21.59077]
[1753623496041,3.85916,3817.2,3817.1,21.59077]
[1753623496843,3.3354,3817.2,3817.1,21.59077]
[1753623497046,3.85916,3817.2,3817.1,21.59077]
[1753623498246,1.3431,3816.6,3816.5,3.7491]
[1753623498447,3.3354,3816.6,3816.5,25.82965]
[1753623498645,3.3354,3816.6,3816.5,27.01515]
[1753623499144,3.3354,3816.6,3816.5,27.01865]
[1753623499346,3.85924,3816.6,3816.5,4.27295]
[1753623499549,3.85924,3816.6,3816.5,0.52385]
[1753623499846,1.86699,3816.2,3816.1,3.7317]
[1753623500050,0.52391,3816.1,3816.0,21.60591]
[1753623500251,3.85931,3816.1,3816.0,21.60591]
[1753623501249,3.3354,3816.1,3816.0,21.60591]
[1753623502153,3.3354,3816.1,3816.0,23.83391]
[1753623503346,3.85931,3816.1,3816.0,23.83391]
[1753623503651,3.3354,3816.1,3816.0,23.83391]
[1753623503951,3.85931,3816.1,3816.0,21.082]
[1753623504447,3.85931,3816.1,3816.0,21.60592]
[1753623509654,3.85931,3816.1,3816.0,22.10022]
[1753623509850,2.49281,3816.1,3816.0,22.10022]
[1753623510159,0.9828,3816.1,3816.0,23.80182]
[1753623510352,2.7086,3816.1,3816.0,23.80182]
[1753623510556,3.3206,3816.1,3816.0,23.80182]
[1753623516565,3.84451,3816.1,3816.0,23.75582]
[1753623516755,3.84451,3816.1,3816.0,21.55992]
[1753623517362,3.84451,3816.1,3816.0,22.05422]
[1753623517667,3.84451,3816.1,3816.0,22.82072]
[1753623517861,3.84451,3816.1,3816.0,23.38732]
[1753623518765,3.87847,3815.8,3815.7,1.97864]
[1753623518957,3.87847,3815.8,3815.7,23.01064]
[1753623519367,3.87847,3815.8,3815.7,23.77714]
[1753623519764,3.87847,3815.8,3815.7,2.74514]
[1753623520068,3.87847,3815.8,3815.7,23.77814]
[1753623520663,3.87847,3815.8,3815.4,1.31]
[1753623520664,0.9669,3815.5,3815.4,1.0183]
[1753623520869,3.3545,3815.5,3815.4,21.552]
[1753623521066,3.3545,3815.5,3815.4,0.524]
[1753623521267,3.3545,3815.5,3815.4,21.552]
[1753623521968,3.87849,3815.5,3815.4,21.552]
[1753623522267,3.87849,3815.5,3815.4,22.0463]
[1753623525373,3.87853,3815.2,3815.1,0.52402]
[1753623525571,1.3643,3815.0,3814.9,3.2078]
[1753623525871,3.87856,3815.0,3814.9,25.24717]
[1753623526274,3.87856,3815.0,3814.9,26.01367]
[1753623526575,3.3545,3815.0,3814.9,26.01367]
[1753623526775,3.3545,3815.0,3814.9,26.97407]
[1753623528177,3.87856,3815.0,3814.9,26.97407]
[1753623528679,3.3545,3815.0,3814.9,26.97407]
[1753623529379,0.5932,3815.4,3815.3,2.74522]
[1753623529574,4.2433,3815.8,3815.7,1.48436]
[1753623529776,5.9691,3815.8,3815.7,2.74516]
[1753623530179,6.5623,3815.8,3815.7,2.74516]
[1753623530882,7.08625,3815.8,3815.7,2.74516]
[1753623531883,6.5623,3815.8,3815.7,2.74516]
[1753623532383,7.08625,3815.8,3815.7,2.74516]
[1753623532683,7.08625,3815.8,3815.7,0.52396]
[1753623539783,6.5623,3815.8,3815.4,22.2758]
[1753623540083,3.85259,3815.7,3815.6,0.52396]
[1753623540591,3.85256,3815.7,3815.6,2.72666]
[1753623541088,3.3286,3815.7,3815.6,2.72666]
[1753623541976,0.598,3815.7,3815.6,2.72666]
[1753623542181,4.5124,3816.5,3816.4,2.72657]
[1753623542382,0.7849,3816.5,3816.4,2.72657]
[1753623542686,2.8089,3816.5,3816.4,2.72657]
[1753623542882,3.85245,3816.5,3816.4,2.72657]
[1753623543088,3.3286,3816.5,3816.4,2.72657]
[1753623543385,3.85245,3816.5,3816.4,2.72657]
[1753623544387,3.85245,3816.5,3816.4,0.52387]
[1753623545986,1.3046,3816.3,3816.2,1.47647]
[1753623546179,3.3286,3816.3,3816.2,2.72657]
[1753623547384,1.0003,3816.3,3816.2,2.72657]
[1753623548092,3.3286,3816.3,3816.2,2.72657]
[1753623559688,0.598,3816.3,3816.2,2.72657]
[1753623560786,3.3286,3816.3,3816.2,2.72657]
[1753623563496,0.598,3816.3,3816.2,2.72657]
[1753623563995,1.8249,3816.3,3816.2,2.72657]
[1753623564198,2.4263,3816.3,3816.2,2.72657]
[1753623564393,3.3286,3816.3,3816.2,2.72657]
[1753623569600,3.3286,3816.3,3816.2,5.93437]
[1753623572398,3.3286,3816.3,3816.2,5.15667]
[1753623572802,3.3286,3816.3,3816.2,5.96467]
[1753623574999,1.8249,3816.3,3816.2,5.96467]
[1753623575308,6.3994,3817.1,3817.0,2.69998]
[1753623575899,6.92317,3817.1,3817.0,0.52378]
[1753623577006,6.3994,3817.1,3817.0,0.52378]
[1753623577606,6.92317,3817.1,3817.0,0.52378]
[1753623577909,6.3994,3817.1,3817.0,0.97468]
[1753623578204,6.3994,3817.1,3817.0,2.29178]
[1753623578406,6.3994,3817.1,3817.0,2.69998]
[1753623579700,6.92317,3817.1,3817.0,0.52378]
[1753623579902,6.3994,3817.1,3817.0,0.52378]
[1753623580507,6.3994,3817.1,3817.0,2.69998]
[1753623581006,3.1916,3817.1,3817.0,2.69998]
[1753623581805,1.16,3817.1,3817.0,2.69998]
[1753623582003,0.5926,3817.1,3817.0,2.69998]
[1753623582603,0.5674,3817.5,3817.4,1.44103]
[1753623582904,1.6998,3817.5,3817.4,2.69993]
[1753623583102,2.2924,3817.5,3817.4,2.69993]
[1753623583704,0.5926,3817.5,3817.4,2.69993]
[1753623584106,1.925,3817.9,3817.8,2.69987]
[1753623585414,3.3916,3817.9,3817.8,2.69987]
[1753623586711,2.8242,3817.9,3817.8,2.69987]
[1753623588111,0.7926,3817.9,3817.8,2.69987]
[1753623589111,1.925,3817.9,3817.8,2.69987]
[1753623589308,1.1644,3817.9,3817.8,2.69987]
[1753623589507,0.7926,3817.9,3817.8,2.69987]
[1753623590408,0.2,3817.9,3817.8,3.44633436]
[1753623590608,1.6998,3818.4,3818.3,2.6998]
[1753623591006,2.2924,3818.4,3818.3,2.6998]
[1753623591413,3.1916,3818.4,3818.3,2.6998]
[1753623593110,1.725,3818.4,3818.3,2.6998]
[1753623593306,3.1916,3818.4,3818.3,2.6998]
[1753623598615,0.5926,3818.4,3818.3,2.6998]
[1753623600417,3.73129,3819.2,3818.3,2.6998]
[1753623600418,2.6656,3819.0,3818.9,1.83712]
[1753623600617,2.0838,3819.0,3818.9,3.55012]
[1753623600916,2.6656,3819.2,3819.1,0.52349]
[1753623601315,2.6656,3819.2,3819.1,3.02129]
[1753623602210,3.18908,3819.2,3819.1,3.02129]
[1753623602408,3.77568,3819.2,3819.1,0.52349]
[1753623602615,1.80104,3818.9,3818.8,0.52353]
[1753623602821,3.77574,3818.9,3818.8,0.52353]
[1753623604016,0.52354,3818.8,3818.7,3.73134]
[1753623604219,3.77574,3818.8,3818.7,3.73134]
[1753623604614,0.52359,3818.5,3818.2,3.2078]
[1753623604815,3.2522,3818.3,3818.2,4.16322]
[1753623605022,3.2522,3818.3,3818.2,3.73142]
[1753623605313,3.2522,3818.3,3818.2,5.45562]
[1753623605518,1.3929,3818.3,3818.2,6.75802]
[1753623606612,1.7774,3818.3,3818.2,6.75802]
[1753623606825,2.3592,3818.3,3818.2,6.75802]
[1753623607523,1.7774,3818.3,3818.2,6.75802]
[1753623608615,2.3592,3818.3,3818.2,6.75802]
[1753623609019,3.2522,3818.3,3818.2,6.22922]
[1753623611017,3.2522,3818.3,3818.2,6.75802]
[1753623611923,3.2522,3818.3,3818.2,6.22922]
[1753623612517,3.25845882,3818.3,3818.2,6.22922]
[1753623613423,3.25845882,3818.3,3818.2,6.75802]
[1753623616419,3.25845882,3818.3,3818.2,3.55022]
[1753623616620,3.25845882,3818.3,3818.2,6.75802]
[1753623618021,3.25845882,3818.3,3818.2,21.47562]
[1753623620824,3.77587,3817.8,3817.7,3.2078]
[1753623621324,3.77593,3817.4,3817.3,3.2078]
[1753623621922,3.77596,3817.2,3817.1,0.52376]
[1753623622122,1.80128,3817.1,3817.0,0.52378]
[1753623622331,3.77598,3817.0,3816.9,24.1588]
[1753623622728,3.77598,3817.0,3816.9,3.2078]
[1753623623025,3.77598,3817.0,3816.2,1.30973]
[1753623623026,3.77604,3816.6,3816.5,3.2078]
[1753623623824,3.2522,3816.6,3816.5,5.07175]
[1753623624033,3.77604,3816.6,3816.5,4.13235]
[1753623624226,3.2522,3816.6,3816.5,3.73165]
[1753623624727,3.2522,3816.6,3816.5,6.22945]
[1753623624933,2.6704,3816.6,3816.5,7.50471436]
[1753623625633,3.2522,3816.6,3816.5,7.50471436]
[1753623626128,3.2522,3816.6,3816.5,5.45585]
[1753623626327,3.2522,3816.6,3816.5,3.73165]
[1753623627333,3.2522,3816.6,3816.5,6.22945]
[1753623629734,3.2522,3816.6,3816.5,6.74285]
[1753623630234,3.2522,3816.6,3816.5,6.22945]
[1753623631335,3.2522,3816.6,3816.5,5.45585]
[1753623631637,3.2522,3816.6,3816.5,5.07175]
[1753623632128,3.2522,3816.6,3816.5,4.13235]
[1753623632331,3.2522,3816.6,3816.5,3.73165]
[1753623634431,3.77604,3816.6,3816.5,3.73165]
[1753623634636,3.2522,3816.6,3816.5,3.73165]
[1753623634831,3.77604,3816.6,3816.5,3.2078]
[1753623635040,3.1567,3816.2,3816.1,21.47988]
[1753623635640,3.68059,3816.2,3816.1,21.47988]
[1753623636345,3.1567,3816.2,3816.1,21.47988]
[1753623637143,3.1567,3816.2,3816.1,0.52388]
[1753623637544,3.68059,3816.2,3816.1,0.52388]
[1753623637739,3.1567,3816.2,3816.1,0.52388]
[1753623638140,3.68059,3816.2,3816.1,0.52388]
[1753623639145,2.39172,3816.1,3816.0,0.52391]
[1753623639349,3.68062,3816.1,3816.0,0.52391]
[1753623639550,1.43443,3816.0,3815.9,0.52392]
[1753623639743,3.68063,3816.0,3815.9,0.52392]
[1753623640046,3.68063,3815.9,3815.8,0.71786796]
[1753623641748,3.1567,3815.9,3815.8,0.71786796]
[1753623641950,3.1567,3815.9,3815.8,1.13416796]
[1753623643449,3.68063,3815.9,3815.8,0.19392796]
[1753623644542,3.1567,3815.0,3814.9,0.52407]
[1753623644738,3.68076,3815.0,3814.9,0.52407]
[1753623646449,3.1567,3815.0,3814.9,0.52407]
[1753623646849,3.1567,3815.0,3814.9,1.07467]
[1753623647443,3.1567,3815.0,3814.9,3.06237]
[1753623648545,3.1567,3815.0,3814.9,24.02137]
[1753623649949,3.1567,3815.6,3815.5,3.06229]
[1753623650146,3.1567,3815.6,3815.5,2.30039]
[1753623650944,3.1567,3815.6,3815.5,3.06229]
[1753623651251,3.68068,3815.6,3815.5,1.81389]
[1753623651449,3.1567,3815.6,3815.5,0.52399]
[1753623651750,3.1567,3815.6,3815.3,21.5106]
[1753623651751,3.14,3815.4,3815.3,0.524]
[1753623651952,3.6807,3815.4,3815.3,0.524]
[1753623653254,1.81295,3815.2,3815.1,0.52402]
[1753623653556,3.68075,3815.2,3815.1,0.52402]
[1753623655351,3.1567,3815.2,3815.1,1.43732]
[1753623655545,3.1567,3815.2,3815.1,2.57582]
[1753623655751,3.68073,3815.2,3815.1,3.06232]
[1753623656355,3.1567,3815.2,3815.1,3.06232]
[1753623658256,3.68073,3815.2,3815.1,3.06232]
[1753623658459,3.1567,3815.2,3815.1,3.06232]
[1753623660156,3.68073,3815.2,3815.1,3.06232]
[1753623660458,3.1567,3815.2,3815.1,3.06232]
[1753623660855,1.2398,3815.0,3814.9,0.5428]
[1753623661057,3.63387,3815.0,3814.9,1.06685]
[1753623661253,3.1098,3815.0,3814.9,2.16935]
[1753623661660,3.1098,3815.0,3814.9,3.03365]
[1753623661958,3.63386,3815.0,3814.9,3.03365]
[1753623662552,3.63386,3815.0,3814.9,1.7715]
[1753623662759,3.63394,3814.5,3814.4,2.29562]
[1753623662969,3.1098,3814.5,3814.4,2.29562]
[1753623663269,3.63393,3814.5,3814.4,3.03372]
[1753623664065,3.1098,3814.5,3814.4,3.03372]
[1753623665666,3.63393,3814.5,3814.4,3.03372]
[1753623665872,3.63393,3814.5,3814.4,2.5096]
[1753623666067,3.63393,3814.5,3814.4,3.03374]
[1753623666874,3.63393,3814.5,3814.4,2.29564]
[1753623667275,3.63393,3814.5,3814.4,3.03374]
[1753623669578,3.63393,3814.5,3814.4,2.5096]
[1753623669777,3.1098,3814.2,3814.1,3.03378]
[1753623670176,3.63397,3814.2,3814.1,3.03378]
[1753623675381,3.63397,3814.2,3814.1,3.52928]
[1753623675577,3.63397,3814.2,3814.1,3.03378]
[1753623676879,3.1098,3814.2,3814.1,3.03378]
[1753623677082,3.63397,3814.2,3814.1,3.52928]
[1753623677284,3.63397,3814.2,3814.1,3.03378]
[1753623682895,3.63397,3814.2,3814.1,2.29568]
[1753623683087,3.63397,3814.2,3814.1,1.06698]
[1753623683987,3.63398,3814.1,3814.0,0.52419]
[1753623684386,3.63398,3814.1,3814.0,1.06699]
[1753623684685,3.63398,3814.1,3814.0,3.03379]
[1753623691186,3.63398,3814.1,3814.0,0.5428]
[1753623691590,3.63398,3814.1,3814.0,1.067]
[1753623692187,3.63398,3814.1,3814.0,1.06699]
[1753623692884,3.63398,3814.1,3814.0,1.76549]
[1753623693892,3.63398,3814.1,3814.0,1.2413]
[1753623694095,3.63398,3814.1,3814.0,1.7655]
[1753623696090,3.63398,3814.1,3814.0,2.146]
[1753623696496,0.5583,3814.1,3814.0,3.4632]
[1753623696696,1.08617,3814.3,3814.2,3.46595]
[1753623696998,1.3335,3814.5,3814.4,1.75124]
[1753623697198,1.08611,3814.7,3814.6,1.75121]
[1753623697396,2.78701,3814.7,3814.6,3.46591]
[1753623698396,2.2629,3814.7,3814.6,3.46591]
[1753623698797,2.787,3814.7,3814.6,3.46591]
[1753623699298,3.6313,3814.7,3814.6,3.46591]
[1753623699799,3.6313,3814.7,3814.6,2.99531]
[1753623701191,3.6313,3814.7,3814.6,2.4712]
[1753623701397,3.6313,3814.7,3814.6,1.06971]
[1753623702099,3.6313,3814.7,3814.6,2.99531]
[1753623705202,1.8576,3814.7,3814.6,3.46591]
[1753623705600,3.6313,3814.7,3814.6,3.46591]
[1753623706395,5.06536,3815.0,3814.9,0.52407]
[1753623706603,3.2078,3815.0,3814.9,3.46587]
[1753623707898,0.562,3815.3,3815.2,0.52403]
[1753623708101,2.2629,3815.3,3815.2,3.46583]
[1753623709207,0.562,3815.3,3815.2,3.46583]
[1753623709403,2.1951,3815.6,3815.5,3.46579]
[1753623709905,2.7571,3815.6,3815.5,3.46579]
[1753623710802,0.562,3815.6,3815.5,3.46579]
[1753623710998,1.7009,3815.9,3815.8,1.75105]
[1753623711199,1.7009,3816.0,3815.9,0.8621]
[1753623711407,1.7009,3816.0,3815.9,3.46573]
[1753623711605,1.7078,3816.0,3815.9,3.46573]
[1753623711798,2.5521,3816.0,3815.9,3.46573]
[1753623712004,3.1072,3816.0,3815.9,3.46573]
[1753623712810,3.1072,3816.0,3815.9,2.99513]
[1753623714107,3.63112,3816.0,3815.9,3.46573]
[1753623714309,3.63112,3816.0,3815.9,6.67353]
[1753623714511,3.63112,3816.0,3815.9,2.99513]
[1753623715310,3.1072,3816.0,3815.9,2.99513]
[1753623715607,3.63112,3816.0,3815.9,2.99513]
[1753623716305,0.52392,3816.0,3815.9,2.99513]
[1753623716508,1.92322,3816.7,3816.6,1.9896]
[1753623716699,2.29752,3816.7,3816.6,2.99504]
[1753623716900,2.613,3816.7,3816.6,3.46564]
[1753623718509,1.7078,3816.7,3816.6,3.46564]
[1753623719210,2.2218,3816.7,3816.6,3.46564]
[1753623720211,3.60892,3816.7,3816.6,3.46564]
[1753623720422,3.60892,3816.7,3816.6,2.51344]
[1753623720608,3.60892,3816.7,3816.6,1.81494]
[1753623720907,3.00981,3816.1,3816.0,0.52392]
[1753623721109,3.0177,3816.1,3816.0,2.95722]
[1753623721308,3.0177,3816.1,3816.0,3.41252]
[1753623722007,0.5318,3816.1,3816.0,3.41252]
[1753623722404,3.0177,3816.1,3816.0,3.41252]
[1753623726409,3.54161,3816.1,3816.0,3.41252]
[1753623726605,3.0177,3816.1,3816.0,3.41252]
[1753623728618,2.5037,3816.1,3816.0,3.41252]
[1753623728818,0.5318,3816.1,3816.0,3.41252]
[1753623729511,1.2808,3816.1,3816.0,3.41252]
[1753623729712,3.0177,3816.1,3816.0,2.95722]
[1753623730012,0.89303,3815.9,3815.8,1.07615]
[1753623730218,3.0177,3815.9,3815.8,1.07615]
[1753623730418,3.0177,3815.9,3815.8,6.16505]
[1753623730618,3.54163,3815.9,3815.8,6.16505]
[1753623730817,3.0177,3815.9,3815.8,6.16505]